bitfinex/quotes_ETHUSD_20250605
["timestamp","ask_amount","ask_price","bid_price","bid_amount"]
[1749125427626,6.647,2613.8,2613.6,3.82605572]
[1749125428258,6.647,2613.8,2613.5,3.82621709]
[1749125428416,6.647,2613.8,2613.6,3.82604553]
[1749125428639,6.647,2613.8,2613.6,3.82602549]
[1749125429382,6.647,2613.8,2613.5,3.82620046]
[1749125429879,6.647,2613.8,2613.5,3.8262782]
[1749125430176,7.80628391,2613.8,2613.4,3.8264283]
[1749125430375,7.80628391,2613.8,2613.4,3.82641889]
[1749125430677,7.80628391,2613.8,2613.5,3.82624972]
[1749125431251,3.82521375,2614.3,2613.4,16.0]
[1749125431451,6.631,2614.2,2613.8,3.82577441]
[1749125431666,6.631,2614.2,2613.9,3.82570099]
[1749125431867,6.631,2614.2,2613.8,3.82576658]
[1749125432409,3.82521375,2614.3,2613.7,3.82599224]
[1749125432410,1.3818,2614.4,2614.0,3.82547226]
[1749125432594,6.629,2614.1,2614.0,3.82547226]
[1749125432889,1.70498,2614.4,2614.1,3.82539014]
[1749125433091,6.627,2614.3,2614.2,3.82524703]
[1749125433387,6.627,2614.3,2614.1,3.82529785]
[1749125433592,6.627,2614.3,2614.0,3.82547202]
[1749125433795,7.84268106,2614.3,2614.0,3.82547202]
[1749125433999,7.84268106,2614.3,2613.9,3.82561405]
[1749125434365,7.84268106,2614.3,2614.0,3.82555423]
[1749125435161,7.84268106,2614.3,2614.1,3.82540253]
[1749125435361,7.84268106,2614.3,2614.1,3.82528889]
[1749125435595,7.84268106,2614.3,2614.0,3.82548014]
[1749125435799,1.2142,2614.6,2614.5,3.8248231]
[1749125436001,7.8332,2614.6,2614.5,3.8248231]
[1749125436214,6.619,2614.6,2614.5,3.8248231]
[1749125437221,6.614,2614.6,2614.5,3.8248231]
[1749125438818,0.02,2614.9,2614.5,3.8248231]
[1749125438978,6.626,2614.9,2614.8,3.82438427]
[1749125439441,7.46812276,2614.9,2614.8,3.82438427]
[1749125439797,7.46812276,2614.9,2614.6,3.82459486]
[1749125440120,7.46812276,2614.9,2614.7,3.82452623]
[1749125440487,0.86212276,2614.9,2614.3,13.8251157]
[1749125440693,0.02,2614.9,2614.8,3.82438427]
[1749125440875,6.624,2614.9,2614.8,3.82438427]
[1749125441785,0.02,2614.9,2614.8,3.82438427]
[1749125442115,0.02,2614.9,2614.8,19.82438427]
[1749125442530,0.02,2614.9,2614.8,16.0]
[1749125442816,0.02,2614.9,2614.3,3.8251157]
[1749125442817,3.82443635,2614.8,2614.3,3.8251157]
[1749125442977,6.599,2614.7,2614.4,16.0]
[1749125443178,6.599,2614.7,2614.5,19.8246779]
[1749125443493,6.599,2614.7,2614.6,19.82467681]
[1749125444658,0.02,2614.9,2614.8,3.82438427]
[1749125444823,6.613,2614.9,2614.8,3.82438427]
[1749125445022,6.612,2614.9,2614.8,3.82438427]
[1749125445658,6.61,2614.9,2614.8,19.82438427]
[1749125446417,6.606,2614.9,2614.8,19.82438427]
[1749125446859,7.2666,2614.9,2614.8,16.0]
[1749125447058,7.2666,2614.9,2614.2,3.82524891]
[1749125447059,3.82460192,2614.7,2614.2,3.82524891]
[1749125447359,19.18246031,2614.9,2614.4,19.82490372]
[1749125447946,19.18246031,2614.9,2614.4,19.82492845]
[1749125448256,15.35816479,2614.9,2613.9,11.849]
[1749125448454,6.95226479,2614.6,2614.2,3.82519378]
[1749125448640,6.579,2614.5,2614.3,16.0]
[1749125448842,1.1828,2614.4,2614.1,3.82535444]
[1749125449070,6.95226479,2614.3,2614.1,3.82530579]
[1749125449362,6.95226479,2614.3,2613.7,3.8259938]
[1749125449363,1.1828,2614.4,2614.2,19.82523794]
[1749125449569,0.77618,2614.3,2614.2,19.82523794]
[1749125449931,0.77618,2614.3,2614.1,19.8253516]
[1749125450151,0.77618,2614.3,2614.1,16.0]
[1749125450333,6.95226479,2614.2,2613.5,0.306485]
[1749125450535,6.95226479,2614.2,2613.7,3.82590308]
[1749125450536,6.574,2614.1,2613.7,3.82590308]
[1749125450871,1.35262648,2614.0,2613.8,16.0]
[1749125451359,1.35262648,2614.0,2613.5,0.306485]
[1749125451558,1.35262648,2614.0,2613.8,16.0]
[1749125451734,1.35262648,2614.0,2613.7,3.82591247]
[1749125451934,1.35262648,2614.0,2613.8,16.0]
[1749125452444,2.3378046,2613.9,2613.7,16.0]
[1749125453138,6.567,2613.8,2613.7,16.0]
[1749125453334,6.567,2613.8,2613.7,3.8259938]
[1749125454771,6.567,2613.8,2613.6,3.8260354]
[1749125454976,6.567,2613.8,2613.7,19.8259938]
[1749125455280,6.567,2613.8,2613.7,3.8259938]
[1749125456676,6.567,2613.8,2613.7,19.8259938]
[1749125457343,2.3378046,2613.9,2613.8,19.82584742]
[1749125457578,7.7146,2613.9,2613.8,19.82584742]
[1749125457754,1.35262648,2614.0,2613.8,19.82584742]
[1749125457954,6.55,2613.9,2613.8,19.82584742]
[1749125458150,6.55,2613.9,2613.8,16.0]
[1749125458357,6.55,2613.9,2613.8,3.82584742]
[1749125459059,1.1787,2614.2,2614.0,3.8254863]
[1749125459254,6.545,2614.1,2614.0,19.8254863]
[1749125459460,6.547,2614.1,2614.0,19.8254863]
[1749125459682,6.547,2614.1,2614.0,10.8254863]
[1749125459879,1.559188,2614.2,2614.1,3.82540836]
[1749125460078,8.104188,2614.2,2614.1,3.82540836]
[1749125460280,0.380488,2614.2,2614.1,3.82540836]
[1749125460482,8.37566479,2614.8,2613.9,3.82568436]
[1749125460680,8.37566479,2614.8,2614.4,3.82495513]
[1749125460681,6.547,2614.7,2614.4,3.82495513]
[1749125460864,6.547,2614.7,2613.7,1.85]
[1749125460865,6.547,2614.7,2614.5,3.82481236]
[1749125461059,6.547,2614.7,2614.4,3.82490493]
[1749125461381,0.24,2615.2,2614.8,14.55707227]
[1749125461582,5.02739412,2615.5,2614.8,3.82438427]
[1749125461783,6.55,2615.4,2614.8,19.82438427]
[1749125461985,6.55,2615.0,2614.8,19.82438427]
[1749125462157,6.55,2615.0,2614.1,6.544]
[1749125462158,6.55,2615.0,2614.3,0.374549]
[1749125462357,11.55816881,2615.0,2614.5,16.0]
[1749125462585,0.56986776,2614.9,2614.5,19.82472739]
[1749125462788,0.56986776,2614.9,2614.5,19.82478567]
[1749125463031,0.56986776,2614.9,2614.5,3.82478567]
[1749125463170,0.56986776,2614.9,2614.6,3.82466212]
[1749125463580,0.56986776,2614.9,2614.5,3.82474309]
[1749125463790,0.56986776,2614.9,2614.6,3.82465306]
[1749125463990,0.56986776,2614.9,2614.5,3.82470812]
[1749125464593,1.90802336,2614.8,2614.4,19.82493341]
[1749125465277,6.543,2614.7,2614.5,3.82480628]
[1749125465478,6.543,2614.7,2614.4,19.82489033]
[1749125465792,6.543,2614.7,2614.6,16.0]
[1749125465993,7.44508911,2614.7,2614.6,16.0]
[1749125466508,7.44508911,2614.7,2614.5,16.0]
[1749125466718,7.44508911,2614.7,2614.4,16.0]
[1749125466887,14.3973539,2614.7,2614.4,16.0]
[1749125467089,14.3973539,2614.7,2614.3,3.82500116]
[1749125467090,1.1944,2614.6,2614.3,16.0]
[1749125467292,3.20737715,2614.6,2614.3,3.82511282]
[1749125468409,3.20737715,2614.6,2614.2,19.8251903]
[1749125468772,3.82483515,2614.5,2614.0,3.82548393]
[1749125468972,3.82483515,2614.5,2613.9,3.82557863]
[1749125468973,7.23422123,2614.4,2614.1,19.82540416]
[1749125469391,7.23422123,2614.4,2614.0,19.8254839]
[1749125469920,14.18648602,2614.4,2614.0,16.0]
[1749125470411,14.18648602,2614.4,2613.8,3.8258316]
[1749125470412,18.01146797,2614.4,2613.8,3.82570377]
[1749125470573,3.8255547,2614.0,2613.5,0.306485]
[1749125470779,6.527,2613.9,2613.6,3.82605043]
[1749125470978,6.527,2613.9,2613.7,16.0]
[1749125471793,3.62182123,2614.4,2614.0,3.8255547]
[1749125471978,6.525,2614.3,2614.1,19.8253345]
[1749125473377,1.1612,2614.6,2614.1,16.0]
[1749125473755,6.521,2614.4,2614.3,19.82502912]
[1749125474577,6.521,2614.4,2614.3,16.0]
[1749125475021,6.521,2614.4,2614.3,19.8251157]
[1749125475534,6.516,2614.4,2614.3,16.0]
[1749125475893,6.515,2614.4,2614.3,19.8251157]
[1749125476299,6.515,2614.4,2614.3,16.0]
[1749125477009,6.515,2614.4,2614.3,19.8251157]
[1749125477201,6.515,2614.4,2613.7,16.0]
[1749125477390,6.515,2614.4,2614.3,16.0]
[1749125477608,8.3575,2614.4,2614.3,16.0]
[1749125478334,1.8425,2614.4,2614.3,16.0]
[1749125478543,8.3585,2614.4,2614.3,16.0]
[1749125481451,1.8425,2614.4,2614.3,16.0]
[1749125481658,8.3485,2614.4,2614.3,16.0]
[1749125485340,11.69345401,2614.4,2614.3,16.0]
[1749125487512,11.64345401,2614.4,2614.3,16.0]
[1749125487923,15.46842341,2614.4,2614.3,16.0]
[1749125488125,3.82522532,2614.3,2613.8,3.82574213]
[1749125488349,15.46842341,2614.4,2613.7,3.82598388]
[1749125488350,3.34495401,2614.1,2614.0,3.8255547]
[1749125489271,8.41436487,2614.2,2614.1,3.82540836]
[1749125489422,6.485,2614.2,2614.1,3.82540836]
[1749125489771,6.485,2614.2,2613.9,3.82564243]
[1749125489916,3.34495401,2614.1,2614.0,3.82548828]
[1749125490118,3.34495401,2614.1,2614.0,19.82548828]
[1749125492240,3.34495401,2614.4,2614.1,19.82532953]
[1749125492442,6.8134954,2614.3,2614.1,16.0]
[1749125492661,6.8134954,2614.3,2614.1,3.82538895]
[1749125492862,6.8134954,2614.3,2614.2,16.0]
[1749125493376,6.8134954,2614.3,2614.1,16.0]
[1749125493533,3.34495401,2614.2,2613.5,0.306485]
[1749125493739,3.34495401,2613.9,2613.7,16.0]
[1749125493939,6.476,2613.8,2613.7,19.8259938]
[1749125500550,6.476,2613.8,2613.7,16.0]
[1749125500750,6.476,2613.8,2613.7,19.8259938]
[1749125502270,7.04247501,2614.3,2614.1,3.82533576]
[1749125502271,1.4612954,2614.3,2614.1,3.82533576]
[1749125502490,6.459,2614.2,2614.1,19.82533576]
[1749125502652,4.46835401,2614.6,2614.2,19.82526203]
[1749125502851,1.756,2614.6,2614.5,3.8248231]
[1749125503477,8.215,2614.6,2614.4,19.82496909]
[1749125504362,8.215,2614.6,2614.4,3.82496909]
[1749125504563,9.3709954,2614.6,2614.4,3.82496909]
[1749125505665,2.9119954,2614.6,2614.4,3.82496909]
[1749125505884,6.451,2614.5,2614.4,3.82496909]
[1749125506084,1.1423,2614.9,2614.6,3.82463351]
[1749125506394,8.205,2614.8,2614.6,3.82458433]
[1749125506691,1.1423,2614.9,2614.6,3.82459295]
[1749125506892,6.455,2614.7,2614.6,3.82459295]
[1749125507269,0.02,2614.9,2614.6,3.82459295]
[1749125507484,6.453,2614.8,2614.5,3.82474513]
[1749125507686,6.453,2614.8,2614.6,3.82459158]
[1749125508104,6.451,2614.7,2614.6,3.8245329]
[1749125508565,6.451,2614.7,2614.6,3.82465108]
[1749125509205,6.451,2614.7,2614.6,19.82465108]
[1749125510274,0.02,2614.9,2614.7,19.82447648]
[1749125510469,6.446,2614.8,2614.7,19.82447648]
[1749125510676,6.446,2614.8,2614.6,19.82457514]
[1749125510903,6.446,2614.8,2614.0,16.0]
[1749125511097,6.446,2614.8,2614.7,16.0]
[1749125511698,6.446,2614.8,2614.7,3.82453053]
[1749125512001,6.446,2614.8,2614.7,19.82453053]
[1749125512511,0.02,2614.9,2614.6,3.8246702]
[1749125512711,6.439,2614.8,2614.7,3.82453053]
[1749125515607,6.439,2614.8,2614.6,3.82460681]
[1749125516387,6.439,2614.8,2614.7,3.82453053]
[1749125516691,10.93994941,2614.8,2614.6,3.82455768]
[1749125517010,10.93994941,2614.8,2614.5,3.82473977]
[1749125517386,10.93994941,2614.8,2614.6,3.82466238]
[1749125518203,4.50094941,2614.8,2614.7,3.82453053]
[1749125518404,0.02,2614.9,2614.8,3.82438427]
[1749125518717,6.444,2614.9,2614.7,3.82444954]
[1749125519069,6.422,2614.8,2614.7,3.82444954]
[1749125519926,6.42,2614.8,2614.7,3.82444954]
[1749125520772,0.02,2614.9,2614.8,3.82438427]
[1749125520972,6.438,2614.9,2614.8,3.82438427]
[1749125522007,6.438,2614.9,2614.4,3.8249694]
[1749125522213,3.34495401,2614.8,2614.4,3.8249694]
[1749125522410,3.34495401,2614.8,2614.6,3.82466826]
[1749125522612,3.34495401,2614.8,2614.7,3.82453053]
[1749125522926,0.02,2614.9,2614.8,11.97548927]
[1749125523222,0.02,2614.9,2614.8,3.82438427]
[1749125523381,0.02,2614.9,2614.8,15.28360627]
[1749125523827,0.02,2614.9,2614.8,15.06304827]
[1749125524010,6.436,2614.9,2614.8,14.55904827]
[1749125524207,6.436,2614.9,2614.8,14.09434627]
[1749125524405,6.436,2614.9,2614.8,3.82438427]
[1749125524720,6.436,2614.9,2614.8,19.82438427]
[1749125525293,7.4140954,2614.9,2614.8,16.0]
[1749125525496,7.4140954,2614.9,2614.8,19.82438427]
[1749125525743,7.4140954,2614.9,2614.8,16.0]
[1749125526043,7.4140954,2614.9,2614.8,19.82438427]
[1749125526250,6.436,2614.9,2614.8,19.82438427]
[1749125527344,6.436,2614.9,2614.7,3.82448556]
[1749125527509,3.34495401,2614.8,2614.7,16.0]
[1749125529035,6.436,2614.9,2614.1,16.0]
[1749125529036,0.02,2614.9,2614.1,16.0]
[1749125529331,3.36495401,2614.9,2614.7,19.82443936]
[1749125529628,6.405,2614.8,2614.7,19.82443936]
[1749125531934,6.405,2614.8,2614.5,3.82476397]
[1749125532240,3.34495401,2614.7,2614.5,3.82480848]
[1749125532395,3.34495401,2614.7,2614.2,0.39017141]
[1749125532396,1.1709,2614.6,2614.2,0.39017141]
[1749125532735,6.41,2614.5,2614.4,3.8249694]
[1749125533234,1.2271,2614.9,2614.8,3.82438427]
[1749125533433,7.6421,2614.9,2614.7,3.82445191]
[1749125533751,0.02,2614.9,2614.8,3.82438427]
[1749125533909,0.02,2614.9,2614.8,9.70579427]
[1749125534313,6.433,2614.9,2614.8,8.40179427]
[1749125534735,6.433,2614.9,2614.8,6.22579427]
[1749125536200,0.02,2614.9,2614.8,6.22579427]
[1749125536537,6.429,2614.9,2614.8,22.22579427]
[1749125537513,0.02,2614.9,2614.8,22.22579427]
[1749125537728,6.427,2614.9,2614.8,22.22579427]
[1749125538043,0.02,2614.9,2614.8,22.22579427]
[1749125538245,6.426,2614.9,2614.8,22.22579427]
[1749125538949,6.425,2614.9,2614.8,22.22579427]
[1749125540914,0.02,2614.9,2614.8,22.22579427]
[1749125541130,6.419,2614.9,2614.8,22.22579427]
[1749125541748,0.02,2614.9,2614.8,22.22579427]
[1749125548824,0.02,2614.9,2614.8,21.88170627]
[1749125549621,0.02,2614.9,2614.8,3.82438427]
[1749125550048,0.02,2614.9,2614.8,19.82438427]
[1749125550251,0.02,2614.9,2614.8,3.82438427]
[1749125550561,0.02,2614.9,2614.8,19.82438427]
[1749125552564,6.409,2614.9,2614.8,19.82438427]
[1749125555241,7.169,2614.9,2614.8,19.82438427]
[1749125556743,0.78,2614.9,2614.8,19.82438427]
[1749125556934,6.401,2614.9,2614.8,19.82438427]
[1749125558178,9.74388609,2614.9,2614.6,3.82462678]
[1749125558342,1.2202,2614.8,2614.6,3.82459941]
[1749125558543,1.2202,2614.8,2614.7,16.0]
[1749125559637,1.2202,2614.8,2614.5,19.82468507]
[1749125559862,3.34288609,2614.7,2613.9,16.0]
[1749125560101,1.2325,2614.4,2614.3,16.0]
[1749125560246,1.2325,2614.4,2614.2,3.82518737]
[1749125560596,6.377,2614.3,2614.2,19.82518737]
[1749125561478,1.2325,2614.4,2614.2,19.82518737]
[1749125561786,6.375,2614.3,2614.2,19.82526203]
[1749125562079,1.2081,2614.7,2614.6,16.0]
[1749125562281,8.32053947,2614.7,2614.6,16.0]
[1749125562786,8.32053947,2614.7,2614.4,19.82488107]
[1749125562972,8.32053947,2614.7,2614.5,3.82481531]
[1749125563472,1.94553947,2614.7,2614.6,16.0]
[1749125563655,1.1961,2614.9,2614.7,3.82444429]
[1749125563897,6.373,2614.8,2614.7,3.82444429]
[1749125564046,1.1961,2614.9,2614.8,3.82438427]
[1749125564247,1.1961,2614.9,2614.7,3.82445303]
[1749125564451,6.373,2614.8,2614.7,19.82445303]
[1749125564684,6.373,2614.8,2614.7,16.0]
[1749125564985,8.73629861,2614.8,2614.7,16.0]
[1749125565283,12.56068288,2614.8,2614.7,16.0]
[1749125566082,8.73629861,2614.8,2614.7,16.0]
[1749125568399,2.36329861,2614.8,2614.7,16.0]
[1749125568689,7.6401,2614.8,2614.7,16.0]
[1749125570891,7.6401,2614.8,2614.7,19.82453053]
[1749125571583,1.2721,2614.8,2614.7,19.82453053]
[1749125571893,7.6331,2614.8,2614.7,19.82453053]
[1749125572492,7.6331,2614.8,2614.7,16.0]
[1749125572688,8.73069861,2614.8,2614.7,19.82453053]
[1749125572888,2.37169861,2614.8,2614.7,19.82453053]
[1749125573189,7.6311,2614.8,2614.7,19.82453053]
[1749125573572,7.6291,2614.8,2614.7,19.82453053]
[1749125574791,0.02,2614.9,2614.8,19.82438427]
[1749125574997,6.375,2614.9,2614.8,19.82438427]
[1749125575583,0.02,2614.9,2614.8,19.82438427]
[1749125575911,6.374,2614.9,2614.8,19.82438427]
[1749125577005,0.02,2614.9,2614.8,19.82438427]
[1749125577384,6.372,2614.9,2614.8,19.82438427]
[1749125577587,0.02,2614.9,2614.8,19.82438427]
[1749125577900,6.371,2614.9,2614.8,19.82438427]
[1749125578208,0.02,2614.9,2614.8,19.82438427]
[1749125578413,6.37,2614.9,2614.8,19.82438427]
[1749125579472,0.02,2614.9,2614.8,19.82438427]
[1749125579680,9.70988609,2614.9,2614.8,19.82438427]
[1749125581475,0.02,2614.9,2614.8,30.71377127]
[1749125581912,6.366,2614.9,2614.8,30.71377127]
[1749125582749,6.366,2614.9,2614.8,25.16120627]
[1749125583246,6.374,2614.9,2614.8,25.16120627]
[1749125583521,0.02,2614.9,2614.8,25.16120627]
[1749125583723,0.02,2615.9,2615.8,19.82292224]
[1749125584222,6.375,2615.9,2615.8,19.82292224]
[1749125584705,9.71788609,2615.9,2615.8,19.82292224]
[1749125585708,10.6896747,2615.9,2615.8,16.0]
[1749125586028,11.8749747,2615.9,2615.8,16.0]
[1749125586509,15.6977508,2615.9,2615.8,16.0]
[1749125586830,5.00848009,2615.7,2615.4,16.0]
[1749125587025,3.34288609,2615.5,2615.1,3.82389183]
[1749125587323,3.34288609,2615.3,2615.1,3.82393084]
[1749125587512,6.356,2615.2,2615.1,3.82393084]
[1749125588188,6.356,2615.2,2615.1,19.82393084]
[1749125597742,6.356,2615.2,2615.1,16.0]
[1749125597939,8.95911373,2615.2,2615.1,16.0]
[1749125598750,8.95911373,2615.2,2615.0,3.82400145]
[1749125599110,8.95911373,2615.2,2615.1,3.82394554]
[1749125599517,8.95911373,2615.2,2615.0,3.82400393]
[1749125599733,8.95911373,2615.2,2615.1,3.82394554]
[1749125600621,8.95911373,2615.2,2615.0,3.82402861]
[1749125600824,1.59092511,2615.1,2614.8,0.37869324]
[1749125601004,1.197,2614.9,2614.6,3.82465836]
[1749125601206,1.197,2614.9,2614.7,3.82453053]
[1749125601207,6.344,2614.8,2614.7,3.82453053]
[1749125603311,6.344,2614.8,2614.6,3.82461356]
[1749125603539,0.7781,2614.7,2614.6,3.82467681]
[1749125604830,0.7781,2614.7,2614.6,19.82467681]
[1749125605018,6.344,2614.8,2614.6,3.82467681]
[1749125605212,6.95013732,2614.7,2614.4,3.8249098]
[1749125605415,6.95013732,2614.7,2614.5,16.0]
[1749125607044,6.95013732,2614.7,2614.4,16.0]
[1749125607236,2.55671373,2614.6,2614.4,16.0]
[1749125607432,6.344,2614.5,2614.4,16.0]
[1749125607634,6.344,2614.5,2614.3,16.0]
[1749125607839,0.24,2614.9,2614.1,3.82537462]
[1749125607840,0.60958627,2615.8,2614.8,30.0]
[1749125608024,0.36537532,2615.7,2615.6,44.31350875]
[1749125608463,0.02,2615.9,2615.8,19.82292224]
[1749125608808,6.946,2615.9,2615.8,19.82292224]
[1749125609230,0.02,2615.9,2615.8,19.82292224]
[1749125609431,6.944,2615.9,2615.8,19.82292224]
[1749125609614,0.02,2615.9,2615.8,42.0638486]
[1749125610557,7.031,2615.9,2615.8,42.0638486]
[1749125611139,7.024,2615.9,2615.8,42.0638486]
[1749125611736,7.024,2615.9,2615.8,37.59057437]
[1749125611933,7.024,2615.9,2615.8,32.64436037]
[1749125612133,7.024,2615.9,2615.8,27.15813837]
[1749125612333,7.024,2615.9,2615.8,22.66276937]
[1749125612654,0.02,2615.9,2615.8,22.66276937]
[1749125619074,0.02,2615.9,2615.8,11.1360436]
[1749125620486,0.02,2615.9,2615.8,13.1680436]
[1749125621071,0.02,2615.9,2615.8,29.1680436]
[1749125621580,0.02,2616.9,2616.8,33.82146132]
[1749125621786,6.956,2616.9,2616.8,43.74856032]
[1749125622583,6.956,2616.9,2616.8,33.30719732]
[1749125622883,6.947,2616.9,2616.8,29.41393732]
[1749125623087,0.02,2616.9,2616.8,29.41393732]
[1749125624981,0.03,2617.4,2617.3,33.82073128]
[1749125625151,0.03,2617.4,2617.3,49.82073128]
[1749125625554,0.03,2617.4,2617.3,31.97881728]
[1749125625892,6.947,2617.4,2617.3,19.82073128]
[1749125627182,6.947,2617.4,2617.3,3.82073128]
[1749125627586,6.947,2617.4,2617.3,19.82073128]
[1749125627893,0.03,2617.4,2617.3,19.82073128]
[1749125628093,0.03,2617.4,2617.3,32.79583528]
[1749125631760,0.00627447,2617.9,2617.8,19.82000152]
[1749125631966,0.00627447,2617.9,2617.8,49.82000152]
[1749125632397,6.883,2618.8,2618.0,3.8197097]
[1749125632598,6.883,2618.8,2618.0,46.5772547]
[1749125632599,8.13033732,2618.6,2618.0,46.5772547]
[1749125632766,6.881,2618.3,2618.0,46.5772547]
[1749125633189,6.881,2618.3,2618.0,29.1051917]
[1749125633390,1.1802,2618.6,2618.0,29.1051917]
[1749125633576,6.878,2618.3,2618.0,29.1051917]
[1749125633895,6.878,2618.3,2618.0,3.8197097]
[1749125634070,1.2158,2618.1,2618.0,3.8197097]
[1749125634657,8.0858,2618.1,2618.0,3.8197097]
[1749125634862,6.875,2618.1,2618.0,3.8197097]
[1749125636274,0.005,2618.1,2618.0,3.8197097]
[1749125636477,6.866,2618.1,2618.0,19.8197097]
[1749125636673,0.005,2618.1,2618.0,19.8197097]
[1749125636998,6.864,2618.1,2618.0,19.8197097]
[1749125637374,8.36649373,2618.1,2618.0,19.8197097]
[1749125637587,9.53829373,2618.1,2618.0,16.0]
[1749125637779,9.53829373,2618.1,2618.0,19.8197097]
[1749125637974,9.53129373,2618.1,2618.0,19.8197097]
[1749125638201,9.53129373,2618.1,2618.0,16.0]
[1749125638772,9.53129373,2618.1,2617.9,3.81977749]
[1749125638963,7.90326669,2618.0,2617.9,3.81977749]
[1749125639376,7.90326669,2618.0,2617.3,7.69513678]
[1749125639377,1.1417,2617.9,2617.3,7.69513678]
[1749125639581,0.95312937,2618.0,2617.8,3.82000152]
[1749125639812,1.50749373,2618.1,2618.0,3.8197097]
[1749125639813,0.005,2618.1,2618.0,3.8197097]
[1749125640013,6.846,2618.1,2618.0,3.8197097]
[1749125640215,1.2059,2618.0,2617.9,3.81977723]
[1749125640708,1.2059,2618.0,2617.8,3.81998257]
[1749125640888,1.2059,2618.0,2617.6,16.0]
[1749125641062,8.15603732,2617.7,2617.3,5.671654]
[1749125641263,8.15603732,2617.7,2617.2,16.38935129]
[1749125641264,8.15603732,2617.7,2617.6,19.82029339]
[1749125641468,14.98903732,2617.7,2617.6,19.82029339]
[1749125641667,8.0379,2617.7,2617.6,19.82029339]
[1749125641907,8.0359,2617.7,2617.6,19.82029339]
[1749125642122,8.0359,2617.7,2617.5,3.82043101]
[1749125642123,0.005,2618.1,2618.0,19.8197097]
[1749125642277,6.832,2618.1,2618.0,19.8197097]
[1749125643083,7.5152,2618.1,2618.0,19.8197097]
[1749125643383,0.6882,2618.1,2618.0,19.8197097]
[1749125643570,0.005,2618.1,2618.0,19.8197097]
[1749125643766,6.825,2618.1,2618.0,19.8197097]
[1749125643971,0.005,2618.1,2618.0,19.8197097]
[1749125644172,6.823,2618.1,2618.0,19.8197097]
[1749125644872,6.823,2618.1,2618.0,20.1256677]
[1749125646171,6.809,2618.1,2618.0,20.1256677]
[1749125646813,6.806,2618.1,2618.0,20.1256677]
[1749125647372,6.802,2618.1,2618.0,20.1256677]
[1749125648204,8.6806,2618.1,2618.0,20.1256677]
[1749125648788,0.005,2618.1,2618.0,20.1256677]
[1749125649031,0.005,2618.1,2618.0,26.3511677]
[1749125649222,6.794,2618.1,2618.0,26.3511677]
[1749125649418,0.005,2618.1,2618.0,26.3511677]
[1749125649714,6.791,2618.1,2618.0,26.3511677]
[1749125650022,6.789,2618.1,2618.0,26.3511677]
[1749125650992,7.9906,2618.1,2618.0,22.4791527]
[1749125651995,8.78966,2618.1,2618.0,22.4791527]
[1749125652196,15.97979732,2618.1,2618.0,0.305958]
[1749125652397,16.65169558,2618.1,2618.0,0.305958]
[1749125652600,16.29490234,2618.1,2618.0,0.305958]
[1749125652814,1.2294,2618.0,2616.9,10.0]
[1749125653112,8.17953732,2617.5,2617.4,3.82053393]
[1749125653413,14.94853732,2617.5,2617.4,3.82053393]
[1749125654662,14.94853732,2617.5,2617.3,19.82065813]
[1749125654866,14.94853732,2617.5,2617.4,3.82058531]
[1749125655351,14.94853732,2617.5,2617.4,19.82058531]
[1749125655352,1.2294,2617.5,2617.4,19.82058531]
[1749125655510,7.9854,2617.5,2617.4,19.82058531]
[1749125655713,7.9854,2617.5,2617.4,16.0]
[1749125655946,8.78394,2617.5,2617.4,19.82058531]
[1749125656112,15.73407732,2617.5,2617.4,19.82058531]
[1749125656313,8.78394,2617.5,2617.4,3.82058531]
[1749125656513,1.2294,2617.5,2617.4,3.82058531]
[1749125656725,7.9844,2617.5,2617.4,3.82058531]
[1749125657262,0.24,2617.9,2617.8,3.82000152]
[1749125657560,0.24,2618.0,2617.9,3.8198556]
[1749125658368,6.989,2618.0,2617.9,3.8198556]
[1749125658664,6.984,2618.0,2617.9,3.8198556]
[1749125658832,7.80717,2618.0,2617.9,3.8198556]
[1749125659927,7.80717,2618.0,2617.7,16.0]
[1749125660235,1.1371,2617.7,2617.6,19.8202302]
[1749125660572,7.8741,2617.7,2617.6,19.8202302]
[1749125661074,7.8691,2617.7,2617.6,19.8202302]
[1749125661370,1.1371,2617.7,2617.6,19.8202302]
[1749125661532,7.8681,2617.7,2617.6,19.8202302]
[1749125662951,1.1371,2617.7,2617.6,19.8202302]
[1749125663190,7.8591,2617.7,2617.6,19.8202302]
[1749125664164,2.06577,2618.0,2617.9,3.8198556]
[1749125664500,7.9586,2618.0,2617.9,3.8198556]
[1749125666102,7.9506,2618.0,2617.9,3.8198556]
[1749125666470,1.2426,2618.0,2617.9,3.8198556]
[1749125666808,7.9476,2618.0,2617.9,3.8198556]
[1749125666967,9.62877373,2618.0,2617.9,3.8198556]
[1749125668207,9.62877373,2618.0,2617.7,3.82009686]
[1749125668401,6.95013732,2617.9,2617.7,3.82009686]
[1749125669225,6.95013732,2617.9,2617.8,3.82000152]
[1749125670444,6.95013732,2617.9,2617.7,16.0]
[1749125670641,1.65789111,2617.8,2617.7,19.82014745]
[1749125672222,8.33789111,2617.8,2617.7,19.82014745]
[1749125673953,8.33789111,2617.8,2617.4,3.82051797]
[1749125674175,1.146,2617.7,2617.0,3.82116927]
[1749125674320,8.33789111,2617.8,2616.5,3.82176053]
[1749125674321,1.1801,2617.4,2616.5,3.82176053]
[1749125674526,1.1801,2617.2,2616.7,3.82153266]
[1749125674738,6.69,2617.1,2616.6,3.82164356]
[1749125675022,6.69,2617.1,2616.9,3.82121693]
[1749125675268,6.69,2617.1,2616.4,31.909]
[1749125675478,6.69,2617.1,2616.5,23.415754]
[1749125676053,6.69,2617.1,2616.9,3.82119703]
[1749125676754,6.69,2617.1,2616.9,3.8212598]
[1749125677137,8.25332611,2617.1,2616.8,19.82141276]
[1749125678194,8.25332611,2617.1,2616.7,3.82156559]
[1749125678358,8.25332611,2617.1,2616.8,19.82143771]
[1749125678674,8.25332611,2617.1,2616.9,3.8212771]